fUST/lending_fUST_20250618
["ID","MTS","AMOUNT","RATE_DAILY","PERIOD"]
[366388353,1750228236146,-460.0,0.00021917,6]
[366388354,1750228236155,-460.0,0.00021917,6]
[366388355,1750228236165,-460.0,0.00021917,6]
[366388356,1750228236174,-460.0,0.00021917,6]
[366388357,1750228236183,-427.75107115,0.00021917,6]
[366388358,1750228236193,-545.28059524,0.00021917,6]
[366388359,1750228236202,-460.0,0.00021917,6]
[366388360,1750228236212,-404.39570235,0.00021917,6]
[366388361,1750228236221,-316.3740198,0.00021917,6]
[366388362,1750228236230,-432.59867766,0.00021917,6]
[366388363,1750228236239,-420.0,0.00021917,6]
[366388364,1750228236248,-447.98218203,0.00021917,6]
[366388365,1750228236257,-460.0,0.00021917,6]
[366388366,1750228236266,-439.54914679,0.00021917,6]
[366388367,1750228236276,-460.0,0.00021917,6]
[366388368,1750228236285,-460.0,0.00021917,6]
[366388369,1750228236294,-246.33217553,0.00021917,6]
[366388370,1750228236304,-467.44387408,0.00021917,6]
[366388371,1750228236313,-460.0,0.00021917,6]
[366388372,1750228236322,-422.8812358,0.00021917,6]
[366388373,1750228236331,-460.0,0.00021917,6]
[366388374,1750228236341,-187.93321041,0.00021917,6]
[366388375,1750228236350,-460.0,0.00021917,6]
[366388376,1750228236358,-469.93902303,0.00021917,6]
[366388377,1750228236368,-460.0,0.00021917,6]
[366388378,1750228236377,-1329.37,0.00021917,6]
[366388379,1750228236387,-460.0,0.00021917,6]
[366388380,1750228236396,-460.0,0.00021917,6]
[366388381,1750228236405,-175.38655228,0.00021917,6]
[366388382,1750228236415,-580.55,0.00021917,6]
[366388383,1750228236425,-460.0,0.00021917,6]
[366388384,1750228236434,-473.57,0.00021917,6]
[366388385,1750228236443,-435.16761535,0.00021917,6]
[366388386,1750228236452,-460.0,0.00021917,6]
[366388387,1750228236463,-460.0,0.00021917,6]
[366388388,1750228236472,-431.74172313,0.00021917,6]
[366388389,1750228236482,-460.0,0.00021917,6]
[366388390,1750228236492,-460.0,0.00021917,6]
[366388391,1750228236502,-569.30534601,0.00021917,6]
[366388392,1750228236511,-420.0,0.00021917,6]
[366388393,1750228236521,-460.0,0.00021917,6]
[366388394,1750228236531,-598.56042712,0.00021917,6]
[366388395,1750228236540,-460.0,0.00021917,6]
[366388396,1750228236550,-465.15,0.00021917,6]
[366388397,1750228236561,-460.0,0.00021917,6]
[366388398,1750228236570,-460.0,0.00021917,6]
[366388399,1750228236580,-460.0,0.00021917,6]
[366388400,1750228236589,-427.01478878,0.00021917,6]
[366388401,1750228236599,-460.0,0.00021917,6]
[366388402,1750228236608,-424.87500809,0.00021917,6]
[366388403,1750228236618,-460.0,0.00021917,6]
[366388404,1750228236627,-460.0,0.00021917,6]
[366388405,1750228236637,-460.0,0.00021917,6]
[366388406,1750228236647,-454.83665767,0.00021917,6]
[366388407,1750228236657,-460.0,0.00021917,6]
[366388408,1750228236667,-460.0,0.00021917,6]
[366388409,1750228236678,-457.48250322,0.00021917,6]
[366388410,1750228236687,-392.62754992,0.00021917,6]
[366388411,1750228236697,-152.44094549,0.00021917,6]
[366388412,1750228236706,-460.0,0.00021917,6]
[366388413,1750228236716,-460.0,0.00021917,6]
[366388414,1750228236727,-201.59247577,0.00021917,6]
[366388415,1750228236737,-460.0,0.00021917,6]
[366388416,1750228236747,-151.0,0.00021917,6]
[366388417,1750228236756,-460.0,0.00021917,6]
[366388418,1750228236765,-445.45579128,0.00021917,6]
[366388419,1750228236774,-460.0,0.00021917,6]
[366388420,1750228236786,-460.0,0.00021917,6]
[366388421,1750228236796,-460.0,0.00021917,6]
[366388422,1750228236805,-420.0,0.00021917,6]
[366388423,1750228236814,-411.12322929,0.00021917,6]
[366388424,1750228236824,-380.0,0.00021917,6]
[366388425,1750228236834,-487.5175944,0.00021917,6]
[366388426,1750228236844,-400.0,0.00021917,6]
[366388427,1750228236853,-498.39994239,0.00021917,6]
[366388428,1750228236864,-262.90182691,0.00021917,6]
[366388429,1750228236873,-507.94716466,0.00021917,6]
[366388430,1750228236883,-373.33250679,0.00021934,6]
[366388431,1750228236892,-199.4762761,0.00021944,6]
[366388432,1750228236901,-200.84609681,0.00021944,6]
[366388433,1750228236911,-648.44003248,0.00021944,3]
[366388434,1750228236920,-500.0,0.00021944,6]
[366388435,1750228236933,-210.53963713,0.00021944,6]
[366388436,1750228236942,-203.73436701,0.00021944,6]
[366388437,1750228236951,-151.0,0.00021944,6]
[366388438,1750228236960,-259.28399719,0.00021944,6]
[366388439,1750228236970,-151.0,0.00021944,2]
[366388440,1750228236980,-198.31752713,0.00021944,2]
[366388441,1750228236989,-626.32147888,0.00021944,6]
[366388442,1750228236998,-259.75995816,0.00021944,6]
[366388443,1750228237009,-500.0,0.00021972,6]
[366388444,1750228237019,-151.0,0.00021972,6]
[366388445,1750228237028,-200.10080426,0.00021972,2]
[366388446,1750228237038,-163.91607868,0.00021973,2]
[366388447,1750228237048,-500.0,0.00021999,6]
[366388448,1750228237057,-151.0,0.00021999,6]
[366388449,1750228237066,-37803.8758103,0.00022,2]
[366388450,1750228237075,-500.0,0.00022026,6]
[366388451,1750228237085,-500.0,0.00022026,6]
[366388452,1750228237095,-500.0,0.00022026,6]
[366388453,1750228237104,-500.0,0.00022027,6]
[366388454,1750228237113,-163.12374859,0.00022027,6]
[366388455,1750228237122,-350.75020328,0.00022027,6]
[366388456,1750228237131,-401.96,0.00022027,6]
[366388457,1750228237141,-440.0,0.00022027,6]
[366388458,1750228237150,-384.9233337,0.00022027,6]
[366388459,1750228237160,-435.4644235,0.00022027,6]
[366388460,1750228237170,-508.94788818,0.00022027,6]
[366388461,1750228237179,-482.15247334,0.00022027,6]
[366388462,1750228237189,-460.0,0.00022027,6]
[366388463,1750228237198,-424.87215698,0.00022027,6]
[366388464,1750228237211,-213.89401157,0.00022027,6]
[366388465,1750228237220,-482.47391769,0.00022027,6]
[366388466,1750228237230,-460.0,0.00022027,6]
[366388467,1750228237239,-483.8546327,0.00022027,6]
[366388468,1750228237248,-460.0,0.00022027,6]
[366388469,1750228237258,-460.0,0.00022027,6]
[366388470,1750228237267,-415.69948605,0.00022027,6]
[366388471,1750228237277,-460.0,0.00022027,6]
[366388472,1750228237287,-159.07789097,0.00022027,6]
[366388473,1750228237297,-460.0,0.00022027,6]
[366388474,1750228237306,-143.73307727,0.00022027,6]
[366388499,1750228238468,-316.26692273,0.00022027,6]
[366388501,1750228238478,-460.0,0.00022027,6]
[366388502,1750228238487,-460.0,0.00022027,6]
[366388504,1750228238497,-460.0,0.00022027,6]
[366388507,1750228238507,-346.66228101,0.00022027,6]
[366388508,1750228238516,-460.0,0.00022027,6]
[366388510,1750228238525,-460.0,0.00022027,6]
[366388512,1750228238535,-461.14112551,0.00022027,6]
[366388514,1750228238544,-460.0,0.00022027,6]
[366388516,1750228238554,-460.0,0.00022027,6]
[366388518,1750228238563,-460.0,0.00022027,6]
[366388520,1750228238573,-460.0,0.00022027,6]
[366388522,1750228238582,-460.0,0.00022027,6]
[366388524,1750228238592,-394.02466216,0.00022027,6]
[366388525,1750228238602,-529.16803782,0.00022027,6]
[366388526,1750228238611,-150.84769655,0.00022027,6]
[366388527,1750228238620,-460.0,0.00022027,6]
[366388529,1750228238629,-460.0,0.00022027,6]
[366388531,1750228238638,-460.0,0.00022027,6]
[366388533,1750228238647,-460.0,0.00022027,6]
[366388535,1750228238657,-460.0,0.00022027,6]
[366388537,1750228238667,-460.0,0.00022027,6]
[366388539,1750228238676,-460.0,0.00022027,6]
[366388541,1750228238686,-378.70065807,0.00022027,6]
[366388543,1750228238695,-460.0,0.00022027,6]
[366388545,1750228238705,-460.0,0.00022027,6]
[366388547,1750228238714,-529.27070013,0.00022027,6]
[366388549,1750228238724,-460.0,0.00022027,6]
[366388551,1750228238733,-460.0,0.00022027,6]
[366388552,1750228238743,-323.18644927,0.00022027,6]
[366388553,1750228238752,-460.0,0.00022027,6]
[366388554,1750228238762,-460.0,0.00022027,6]
[366388555,1750228238771,-182.36,0.00022027,6]
[366388556,1750228238781,-277.47618959,0.00022027,6]
[366388557,1750228238790,-428.45471386,0.00022027,6]
[366388558,1750228238799,-460.0,0.00022027,6]
[366388559,1750228238810,-460.0,0.00022027,6]
[366388561,1750228238819,-460.0,0.00022027,6]
[366388563,1750228238829,-427.42883138,0.00022027,6]
[366388565,1750228238839,-460.0,0.00022027,6]
[366388567,1750228238848,-460.0,0.00022027,6]
[366388569,1750228238857,-521.63407693,0.00022027,6]
[366388571,1750228238867,-415.21535527,0.00022027,6]
[366388573,1750228238876,-460.0,0.00022027,6]
[366388575,1750228238885,-400.0,0.00022027,6]
[366388577,1750228238895,-502.2059424,0.00022027,6]
[366388579,1750228238905,-460.0,0.00022027,6]
[366388581,1750228238914,-460.0,0.00022027,6]
[366388583,1750228238924,-460.0,0.00022027,6]
[366388585,1750228238938,-400.98633417,0.00022027,6]
[366388587,1750228238947,-460.0,0.00022027,6]
[366388589,1750228238958,-390.0,0.00022027,6]
[366388591,1750228238967,-350.4780944,0.00022027,6]
[366388593,1750228238977,-460.0,0.00022027,6]
[366388595,1750228238986,-399.3641378,0.00022027,6]
[366388597,1750228238995,-460.0,0.00022027,6]
[366388599,1750228239005,-460.0,0.00022027,6]
[366388601,1750228239014,-400.54061231,0.00022027,6]
[366388603,1750228239024,-460.0,0.00022027,6]
[366388605,1750228239033,-460.0,0.00022027,6]
[366388607,1750228239042,-460.0,0.00022027,6]
[366388609,1750228239052,-460.0,0.00022027,6]
[366388610,1750228239073,-460.0,0.00022027,6]
[366388612,1750228239083,-411.78910029,0.00022027,6]
[366388614,1750228239092,-460.0,0.00022027,6]
[366388616,1750228239102,-460.0,0.00022027,6]
[366388618,1750228239111,-498.57950911,0.00022027,6]
[366388620,1750228239121,-460.0,0.00022027,6]
[366388622,1750228239130,-460.0,0.00022027,6]
[366388624,1750228239139,-460.0,0.00022027,6]
[366388626,1750228239150,-460.0,0.00022027,6]
[366388628,1750228239159,-390.0,0.00022027,6]
[366388630,1750228239168,-460.0,0.00022027,6]
[366388632,1750228239178,-369.05564529,0.00022027,6]
[366388634,1750228239188,-460.0,0.00022027,6]
[366388636,1750228239197,-460.0,0.00022027,6]
[366388638,1750228239206,-460.0,0.00022027,6]
[366388640,1750228239216,-334.75255334,0.00022027,6]
[366388642,1750228239226,-460.0,0.00022027,6]
[366388644,1750228239236,-460.0,0.00022027,6]
[366388646,1750228239245,-206.07,0.00022027,6]
[366388648,1750228239255,-460.0,0.00022027,6]
[366388650,1750228239264,-460.0,0.00022027,6]
[366388652,1750228239275,-460.0,0.00022027,6]
[366388654,1750228239285,-390.0,0.00022027,6]
[366388656,1750228239295,-460.0,0.00022027,6]
[366388658,1750228239304,-460.0,0.00022027,6]
[366388660,1750228239314,-460.0,0.00022027,6]
[366388662,1750228239323,-460.0,0.00022027,6]
[366388664,1750228239333,-460.0,0.00022027,6]
[366388676,1750228239431,-460.0,0.00022027,6]
[366388678,1750228239441,-460.0,0.00022027,6]
[366388680,1750228239451,-460.0,0.00022027,6]
[366388682,1750228239460,-460.0,0.00022027,6]
[366388684,1750228239470,-460.0,0.00022027,6]
[366388686,1750228239479,-460.0,0.00022027,6]
[366388688,1750228239488,-460.0,0.00022027,6]
[366388690,1750228239497,-460.0,0.00022027,6]
[366388692,1750228239506,-261.63049937,0.00022027,6]
[366388693,1750228239515,-333.35282029,0.00022027,6]
[366388695,1750228239525,-460.0,0.00022027,6]
[366388697,1750228239535,-460.0,0.00022027,6]
[366388700,1750228239545,-460.0,0.00022027,6]
[366388702,1750228239554,-460.0,0.00022027,6]
[366388704,1750228239563,-460.0,0.00022027,6]
[366388706,1750228239572,-460.0,0.00022027,6]
[366388708,1750228239581,-460.0,0.00022027,6]
[366388710,1750228239590,-390.0,0.00022027,6]
[366388712,1750228239599,-460.0,0.00022027,6]
[366388714,1750228239608,-460.0,0.00022027,6]
[366388716,1750228239618,-460.0,0.00022027,6]
[366388718,1750228239627,-460.0,0.00022027,6]
[366388720,1750228239636,-460.0,0.00022027,6]
[366388722,1750228239645,-460.0,0.00022027,6]
[366388724,1750228239655,-380.0,0.00022027,6]
[366388726,1750228239665,-460.0,0.00022027,6]
[366388728,1750228239674,-460.0,0.00022027,6]
[366388730,1750228239683,-422.69359754,0.00022027,6]
[366388732,1750228239693,-406.50910785,0.00022027,6]
[366388734,1750228239702,-460.0,0.00022027,6]
[366388736,1750228239711,-460.0,0.00022027,6]
[366388738,1750228239720,-1329.37,0.00022027,6]
[366388740,1750228239729,-460.0,0.00022027,6]
[366388742,1750228239738,-460.0,0.00022027,6]
[366388744,1750228239748,-473.57,0.00022027,6]
[366388746,1750228239757,-460.0,0.00022027,6]
[366388748,1750228239767,-400.0,0.00022027,6]
[366388750,1750228239776,-460.0,0.00022027,6]
[366388752,1750228239786,-460.0,0.00022027,6]
[366388754,1750228239796,-465.15,0.00022027,6]
[366388756,1750228239805,-460.0,0.00022027,6]
[366388758,1750228239815,-460.0,0.00022027,6]
[366388760,1750228239824,-460.0,0.00022027,6]
[366388762,1750228239834,-460.0,0.00022027,6]
[366388764,1750228239843,-432.472781,0.00022027,6]
[366388766,1750228239853,-460.0,0.00022027,6]
[366388768,1750228239864,-452.84313175,0.00022027,6]
[366388770,1750228239873,-460.0,0.00022027,6]
[366388772,1750228239883,-460.0,0.00022027,6]
[366388774,1750228239892,-460.0,0.00022027,6]
[366388776,1750228239901,-460.0,0.00022027,6]
[366388778,1750228239911,-500.0,0.00022054,6]
[366388780,1750228239920,-500.0,0.00022081,6]
[366388782,1750228239931,-353.38188077,0.00022105,2]
[366388784,1750228239940,-373.33250679,0.00022107,6]
[366388785,1750228239950,-500.0,0.00022109,6]
[366388788,1750228239961,-460.0,0.00022136,6]
[366388789,1750228239971,-400.0,0.00022136,6]
[366388791,1750228239980,-460.0,0.00022136,6]
[366388794,1750228239990,-417.58325611,0.00022136,6]
[366388796,1750228239999,-460.0,0.00022136,6]
[366388797,1750228240009,-346.36612587,0.00022136,6]
[366388800,1750228240018,-600.31,0.00022136,6]
[366388802,1750228240028,-571.29,0.00022136,6]
[366388803,1750228240039,-455.9,0.00022136,6]
[366388808,1750228240050,-460.0,0.00022136,6]
[366388810,1750228240060,-400.0,0.00022136,6]
[366388813,1750228240070,-460.0,0.00022136,6]
[366388816,1750228240080,-460.0,0.00022136,6]
[366388819,1750228240090,-460.0,0.00022136,6]
[366388822,1750228240099,-460.0,0.00022136,6]
[366388824,1750228240108,-460.0,0.00022136,6]
[366388827,1750228240118,-460.0,0.00022136,6]
[366388830,1750228240128,-522.02,0.00022136,6]
[366388833,1750228240138,-460.0,0.00022136,6]
[366388836,1750228240147,-508.1850128,0.00022136,6]
[366388839,1750228240158,-460.0,0.00022136,6]
[366388842,1750228240167,-460.0,0.00022136,6]
[366388845,1750228240176,-246.24773408,0.00022136,6]
[366388848,1750228240188,-460.0,0.00022136,6]
[366388851,1750228240197,-461.84,0.00022136,6]
[366388855,1750228240207,-460.0,0.00022136,6]
[366388858,1750228240217,-460.0,0.00022136,6]
[366388860,1750228240226,-460.0,0.00022136,6]
[366388863,1750228240235,-460.0,0.00022136,6]
[366388866,1750228240245,-460.0,0.00022136,6]
[366388868,1750228240254,-460.0,0.00022136,6]
[366388870,1750228240264,-460.0,0.00022136,6]
[366388872,1750228240274,-1329.37,0.00022136,6]
[366388874,1750228240284,-460.0,0.00022136,6]
[366388877,1750228240293,-460.0,0.00022136,6]
[366388879,1750228240303,-473.57,0.00022136,6]
[366388882,1750228240313,-465.15,0.00022136,6]
[366388884,1750228240322,-460.0,0.00022136,6]
[366388886,1750228240331,-382.87495642,0.00022136,6]
[366388888,1750228240341,-588.25,0.00022136,6]
[366388889,1750228240350,-460.0,0.00022136,6]
[366388891,1750228240360,-460.0,0.00022136,6]
[366388893,1750228240370,-460.0,0.00022136,6]
[366388895,1750228240379,-500.0,0.00022136,6]
[366388898,1750228240389,-263.01426098,0.00022164,6]
[366388900,1750228240399,-845.78193577,0.00022218,2]
[366388901,1750228240408,-229.98435572,0.00022228,2]
[366388904,1750228240419,-160.0,0.00022228,2]
[366388905,1750228240429,-835.98428123,0.00022228,2]
[366388908,1750228240439,-213.43818883,0.00022228,2]
[366388910,1750228240448,-160.0,0.00022228,2]
[366388912,1750228240458,-424.70586748,0.00022228,2]
[366388914,1750228240468,-160.0,0.00022235,2]
[366388915,1750228240477,-500.0,0.00022245,6]
[366388918,1750228240488,-460.0,0.00022246,6]
[366388919,1750228240497,-460.0,0.00022246,6]
[366388921,1750228240507,-460.0,0.00022246,6]
[366388924,1750228240517,-460.0,0.00022246,6]
[366388925,1750228240526,-460.0,0.00022246,6]
[366388927,1750228240535,-460.0,0.00022246,6]
[366388929,1750228240545,-460.0,0.00022246,6]
[366388931,1750228240554,-460.0,0.00022246,6]
[366388933,1750228240564,-460.0,0.00022246,6]
[366388935,1750228240573,-460.0,0.00022246,6]
[366388937,1750228240583,-460.0,0.00022246,6]
[366388939,1750228240593,-460.0,0.00022246,6]
[366388941,1750228240603,-1329.37,0.00022246,6]
[366388943,1750228240613,-460.0,0.00022246,6]
[366388945,1750228240623,-473.57,0.00022246,6]
[366388947,1750228240632,-465.15,0.00022246,6]
[366388949,1750228240641,-460.0,0.00022246,6]
[366388951,1750228240651,-460.0,0.00022246,6]
[366388953,1750228240661,-460.0,0.00022246,6]
[366388955,1750228240670,-373.33250679,0.00022279,6]
[366388957,1750228240680,-460.0,0.00022356,6]
[366388959,1750228240689,-460.0,0.00022356,6]
[366388961,1750228240698,-460.0,0.00022356,6]
[366388963,1750228240708,-460.0,0.00022356,6]
[366388965,1750228240718,-460.0,0.00022356,6]
[366388967,1750228240728,-460.0,0.00022356,6]
[366388969,1750228240738,-460.0,0.00022356,6]
[366388971,1750228240747,-460.0,0.00022356,6]
[366388973,1750228240756,-460.0,0.00022356,6]
[366388975,1750228240766,-460.0,0.00022356,6]
[366388977,1750228240775,-460.0,0.00022356,6]
[366388979,1750228240785,-1329.37,0.00022356,6]
[366388981,1750228240795,-460.0,0.00022356,6]
[366388983,1750228240804,-473.57,0.00022356,6]
[366388985,1750228240814,-465.15,0.00022356,6]
[366388987,1750228240823,-460.0,0.00022356,6]
[366388989,1750228240833,-460.0,0.00022356,6]
[366388991,1750228240842,-460.0,0.00022356,6]
[366388993,1750228240851,-373.33250679,0.00022452,7]
[366388995,1750228240861,-160.0,0.00022464,2]
[366388997,1750228240870,-539.3,0.00022464,6]
[366388999,1750228240879,-460.0,0.00022465,6]
[366389001,1750228240888,-460.0,0.00022465,6]
[366389003,1750228240896,-460.0,0.00022465,6]
[366389005,1750228240906,-460.0,0.00022465,6]
[366389007,1750228240915,-460.0,0.00022465,6]
[366389009,1750228240924,-460.0,0.00022465,6]
[366389011,1750228240937,-460.0,0.00022465,6]
[366389013,1750228240946,-460.0,0.00022465,6]
[366389015,1750228240956,-460.0,0.00022465,6]
[366389017,1750228240965,-460.0,0.00022465,6]
[366389019,1750228240976,-1329.37,0.00022465,6]
[366389021,1750228240985,-460.0,0.00022465,6]
[366389023,1750228240994,-473.57,0.00022465,6]
[366389025,1750228241003,-465.15,0.00022465,6]
[366389027,1750228241013,-416.80828825,0.00022465,6]
[366389029,1750228241024,-460.0,0.00022465,6]
[366389031,1750228241033,-460.0,0.00022465,6]
[366389033,1750228241043,-150.0,0.00022558,2]
[366389035,1750228241052,-518.97,0.00022575,6]
[366389037,1750228241062,-460.0,0.00022575,6]
[366389040,1750228241072,-460.0,0.00022575,6]
[366389042,1750228241082,-460.0,0.00022575,6]
[366389043,1750228241091,-460.0,0.00022575,6]
[366389046,1750228241102,-460.0,0.00022575,6]
[366389047,1750228241111,-460.0,0.00022575,6]
[366389049,1750228241120,-460.0,0.00022575,6]
[366389052,1750228241130,-460.0,0.00022575,6]
[366389053,1750228241139,-460.0,0.00022575,6]
[366389056,1750228241149,-1329.37,0.00022575,6]
[366389058,1750228241159,-460.0,0.00022575,6]
[366389059,1750228241168,-473.57,0.00022575,6]
[366389061,1750228241178,-465.15,0.00022575,6]
[366389064,1750228241187,-460.0,0.00022575,6]
[366389065,1750228241197,-209.0,0.00022575,6]
[366389068,1750228241206,-4833.0,0.00022577,2]
[366389070,1750228241217,-373.33250679,0.00022624,7]
[366389072,1750228241227,-5000.0,0.00022632,2]
[366389074,1750228241236,-207.4,0.00022632,2]
[366389076,1750228241246,-460.0,0.00022684,6]
[366389078,1750228241255,-460.0,0.00022684,6]
[366389080,1750228241265,-460.0,0.00022684,6]
[366389082,1750228241274,-383.0,0.00022684,6]
[366389084,1750228241284,-238.75,0.00022684,6]
[366389086,1750228241294,-460.0,0.00022684,6]
[366389088,1750228241304,-460.0,0.00022684,6]
[366389090,1750228241314,-460.0,0.00022684,6]
[366389092,1750228241323,-460.0,0.00022684,6]
[366389094,1750228241333,-1329.37,0.00022684,6]
[366389096,1750228241342,-460.0,0.00022684,6]
[366389098,1750228241352,-473.57,0.00022684,6]
[366389100,1750228241361,-465.15,0.00022684,6]
[366389102,1750228241371,-460.0,0.00022684,6]
[366389104,1750228241380,-460.0,0.00022794,6]
[366389106,1750228241390,-460.0,0.00022794,6]
[366389108,1750228241399,-460.0,0.00022794,6]
[366389110,1750228241409,-460.0,0.00022794,6]
[366389112,1750228241418,-460.0,0.00022794,6]
[366389113,1750228241427,-460.0,0.00022794,6]
[366389115,1750228241436,-460.0,0.00022794,6]
[366389117,1750228241447,-1329.37,0.00022794,6]
[366389119,1750228241457,-460.0,0.00022794,6]
[366389121,1750228241466,-473.57,0.00022794,6]
[366389123,1750228241476,-465.15,0.00022794,6]
[366389126,1750228241486,-460.0,0.00022794,6]
[366389127,1750228241495,-373.33250679,0.00022797,7]
[366389129,1750228241504,-4833.0,0.00022841,2]
[366389131,1750228241514,-460.0,0.00022904,6]
[366389133,1750228241523,-460.0,0.00022904,6]
[366389135,1750228241532,-460.0,0.00022904,6]
[366389137,1750228241542,-460.0,0.00022904,6]
[366389139,1750228241551,-460.0,0.00022904,6]
[366389141,1750228241561,-460.0,0.00022904,6]
[366389143,1750228241570,-460.0,0.00022904,6]
[366389145,1750228241579,-1329.37,0.00022904,6]
[366389147,1750228241588,-486.005787,0.00022904,6]
[366389149,1750228241598,-473.57,0.00022904,6]
[366389151,1750228241607,-465.15,0.00022904,6]
[366389153,1750228241617,-460.0,0.00022904,6]
[366389155,1750228241626,-373.33250679,0.00022969,8]
[366389157,1750228241635,-500.0,0.00022973,2]
[366389159,1750228241645,-503.99533734,0.00022973,2]
[366389161,1750228241654,-500.0,0.00022973,2]
[366389163,1750228241663,-500.0,0.00022973,2]
[366389165,1750228241672,-500.0,0.00022973,2]
[366389167,1750228241681,-502.18314876,0.00022973,2]
[366389169,1750228241691,-501.15956956,0.00022973,2]
[366389171,1750228241700,-600.0,0.00022973,2]
[366389173,1750228241710,-500.0,0.00022973,2]
[366389185,1750228241813,-504.30613051,0.00022973,2]
[366389187,1750228241823,-500.0,0.00022973,2]
[366389189,1750228241833,-81869.15323763,0.00023,2]
[366389191,1750228241842,-1955.62057012,0.00023,2]
[366389193,1750228241851,-10043.38789823,0.00023,2]
[366389195,1750228241860,-500.0,0.00023013,2]
[366389197,1750228241870,-460.0,0.00023013,6]
[366389199,1750228241880,-460.0,0.00023013,6]
[366389201,1750228241889,-460.0,0.00023013,6]
[366389204,1750228241899,-460.0,0.00023013,6]
[366389206,1750228241911,-376.32474529,0.00023013,6]
[366389208,1750228241920,-460.0,0.00023013,6]
[366389210,1750228241931,-346.87138144,0.00023013,6]
[366389212,1750228241941,-1329.37,0.00023013,6]
[366389214,1750228241951,-473.57,0.00023013,6]
[366389216,1750228241960,-465.15,0.00023013,6]
[366389218,1750228241970,-460.0,0.00023013,6]
[366389220,1750228241980,-460.0,0.00023123,6]
[366389222,1750228241989,-460.0,0.00023123,6]
[366389224,1750228241998,-460.0,0.00023123,6]
[366389226,1750228242008,-460.0,0.00023123,6]
[366389228,1750228242019,-460.0,0.00023123,6]
[366389230,1750228242028,-1329.37,0.00023123,6]
[366389232,1750228242036,-473.57,0.00023123,6]
[366389234,1750228242045,-465.15,0.00023123,6]
[366389236,1750228242055,-460.0,0.00023123,6]
[366389238,1750228242065,-373.33250679,0.00023141,8]
[366389240,1750228242074,-5000.0,0.0002318,2]
[366389242,1750228242084,-460.0,0.00023232,6]
[366389244,1750228242093,-372.53390704,0.00023232,6]
[366389246,1750228242102,-460.0,0.00023232,6]
[366389248,1750228242111,-460.0,0.00023232,6]
[366389250,1750228242120,-460.0,0.00023232,6]
[366389252,1750228242129,-1329.37,0.00023232,6]
[366389254,1750228242139,-473.57,0.00023232,6]
[366389256,1750228242148,-465.15,0.00023232,6]
[366389258,1750228242157,-349.23728787,0.00023232,6]
[366389260,1750228242167,-365.5483814,0.0002326,2]
[366389262,1750228242177,-365.5483814,0.0002326,2]
[366389264,1750228242186,-365.5483814,0.0002326,2]
[366389266,1750228242196,-230.2971161,0.0002326,2]
[366389268,1750228242205,-677.0,0.00023273,2]
[366389270,1750228242214,-154.971557,0.00023273,7]
[366389272,1750228242224,-539.130889,0.00023303,3]
[366389274,1750228242234,-373.33250679,0.00023314,9]
[366389276,1750228242243,-677.0,0.00023324,2]
[366389278,1750228242255,-460.0,0.00023342,6]
[366389280,1750228242264,-460.0,0.00023342,6]
[366389282,1750228242273,-460.0,0.00023342,6]